[Event "WYCC 2018 O14"]
[Site "Halkidiki"]
[Date "2018.10.22"]
[Round "4"]
[White "Zhukenov, Aituar"]
[Black "Juhasz, Agoston"]
[Result "1/2-1/2"]
[ECO "B18"]
[WhiteElo "2025"]
[BlackElo "2174"]
[Annotator "ChessBase"]
[PlyCount "148"]
[EventDate "2018.10.20"]
[EventType "swiss"]
[EventCountry "GRE"]
[SourceTitle "playchess.com"]
[Source "ChessBase"]
[SourceQuality "1"]
[TimeControl "40/5400+30:1800+30"]

1. e4 {[%emt 0:00:00]} c6 {[%emt 0:00:00]} 2. d4 {[%emt 0:00:00]} d5 {[%emt 0:00:00]} 3. Nc3 {[%emt 0:00:07]} dxe4 {[%emt 0:00:00]} 4. Nxe4 {[%emt 0:00:03]} Bf5 {[%emt 0:00:10]} 5. Ng3 {[%emt 0:00:09]} Bg6 {[%emt 0:00:07]} 6. Bc4 {[%emt 0:00:13]} e6 {[%emt 0:00:50]} 7. N1e2 {[%emt 0:03:27]} Bd6 {[%emt 0:00:44]} 8. h4 {[%emt 0:00:49]} h6 {[%emt 0:01:40]} 9. Nf4 {[%emt 0:00:59]} Bxf4 {[%emt 0:08:25]} 10. Bxf4 {[%emt 0:00:12]} Nf6 {[%emt 0:00:20]} 11. Qe2 {[%emt 0:02:53]} Qa5+ {[%emt 0:12:31]} 12. Bd2 {[%emt 0:16:38]} Qb6 {[%emt 0:02:23]} 13. O-O-O {[%emt 0:00:41]} O-O {[%emt 0:00:47]} 14. h5 {[%emt 0:01:47]} Bh7 {[%emt 0:00:23]} 15. Bd3 {[%emt 0:05:36]} Bxd3 {[%emt 0:05:10]} 16. Qxd3 {[%emt 0:00:21]} Rd8 {[%emt 0:00:35]} 17. Be3 {[%emt 0:04:50]} Na6 {[%emt 0:12:50]} 18. Ne4 {[%emt 0:11:35]} Nxe4 {[%emt 0:04:01]} 19. Qxe4 {[%emt 0:01:38]} Nb4 {[%emt 0:01:57]} 20. c3 {[%emt 0:07:51]} Nxa2+ {[%emt 0:18:12]} 21. Kc2 {[%emt 0:00:08]} Rd5 {[%emt 0:00:33]} 22. Ra1 {[%emt 0:12:18]} Ra5 {[%emt 0:01:44]} 23. Qd3 {[%emt 0:10:28]} c5 {[%emt 0:07:05]} 24. Qc4 {[%emt 0:04:10]} Qc6 {[%emt 0:01:33]} 25. dxc5 {[%emt 0:05:13]} b5 {[%emt 0:01:21]} 26. Qd4 {[%emt 0:01:08]} Ra4 {[%emt 0:01:44]} 27. Qd3 {[%emt 0:03:14]} Qa6 {[%emt 0:01:10]} 28. c6 {[%emt 0:03:26]} Qxc6 {[%emt 0:01:16]} 29. Kd2 {[%emt 0:01:40]} e5 {[%emt 0:04:23]} 30. f3 {[%emt 0:01:24]} Qc7 {[%emt 0:02:41]} 31. Ke2 {[%emt 0:01:01]} Rd8 {[%emt 0:02:41]} 32. Qxb5 {[%emt 0:00:19]} Ra5 {[%emt 0:00:11]} 33. Qb3 {[%emt 0:00:28]} Rb8 {[%emt 0:00:05]} 34. Qc2 {[%emt 0:00:27]} Qc4+ {[%emt 0:00:21]} 35. Kf2 {[%emt 0:00:12]} Nb4 {[%emt 0:02:13]} 36. Qe4 {[%emt 0:00:35]} Nd3+ {[%emt 0:02:37]} 37. Kg3 {[%emt 0:00:02]} Qxe4 {[%emt 0:00:55]} 38. fxe4 {[%emt 0:00:04]} Rxa1 {[%emt 0:00:07]} 39. Rxa1 {[%emt 0:00:05]} Rxb2 {[%emt 0:00:16]} 40. Rxa7 {[%emt 0:00:00]} Re2 {[%emt 0:00:00]} 41. Kf3 {[%emt 0:04:40]} Rc2 {[%emt 0:01:28]} 42. Ra1 {[%emt 0:04:15]} Rxc3 {[%emt 0:01:11]} 43. Rb1 {[%emt 0:04:16]} Nf4 {[%emt 0:14:32]} 44. g4 {[%emt 0:00:58]} g6 {[%emt 0:06:57]} 45. hxg6 {[%emt 0:01:45]} Nxg6 {[%emt 0:01:09]} 46. Rh1 {[%emt 0:06:11]} Kg7 {[%emt 0:02:01]} 47. Rh5 {[%emt 0:02:02]} f6 {[%emt 0:06:52]} 48. Kf2 {[%emt 0:01:09]} Ne7 {[%emt 0:01:10]} 49. Bxh6+ {[%emt 0:00:49]} Kg6 {[%emt 0:00:06]} 50. Be3 {[%emt 0:00:49]} Nc8 {[%emt 0:00:56]} 51. Rh6+ {[%emt 0:01:53]} Kf7 {[%emt 0:01:25]} 52. g5 {[%emt 0:00:32]} fxg5 {[%emt 0:01:03]} 53. Bxg5 {[%emt 0:00:48]} Rc2+ {[%emt 0:00:31]} 54. Kf3 {[%emt 0:00:23]} Kg7 {[%emt 0:01:13]} 55. Re6 {[%emt 0:00:35]} Rc5 {[%emt 0:00:29]} 56. Kg4 {[%emt 0:00:32]} Kf7 {[%emt 0:00:31]} 57. Kf5 {[%emt 0:00:36]} Rb5 {[%emt 0:01:13]} 58. Rf6+ {[%emt 0:00:55]} Kg7 {[%emt 0:00:26]} 59. Rc6 {[%emt 0:02:33]} Nb6 {[%emt 0:00:59]} 60. Rc7+ {[%emt 0:00:09]} Kg8 {[%emt 0:00:10]} 61. Kg6 {[%emt 0:01:18]} Ra5 {[%emt 0:01:04]} 62. Rb7 {[%emt 0:00:23]} Nc8 {[%emt 0:00:18]} 63. Rd7 {[%emt 0:01:21]} Ra6+ {[%emt 0:00:24]} 64. Bf6 {[%emt 0:00:21]} Rd6 {[%emt 0:00:03]} 65. Rb7 {[%emt 0:00:49]} Kf8 {[%emt 0:00:35]} 66. Kf5 {[%emt 0:00:59]} Rb6 {[%emt 0:01:06]} 67. Rc7 {[%emt 0:02:22]} Nd6+ {[%emt 0:00:15]} 68. Kxe5 {[%emt 0:00:43]} Ne8 {[%emt 0:00:49]} 69. Be7+ {[%emt 0:01:11]} Kf7 {[%emt 0:00:19]} 70. Bc5+ {[%emt 0:00:36]} Nxc7 {[%emt 0:00:02]} 71. Bxb6 {[%emt 0:00:02]} Ne6 {[%emt 0:00:10]} 72. Kd6 {[%emt 0:00:25]} Ng5 {[%emt 0:00:20]} 73. e5 {[%emt 0:00:08]} Ke8 {[%emt 0:00:13]} 74. Kd5 {[%emt 0:00:15]} Nf7 {[%emt 0:00:12]} 1/2-1/2

[Event "WYCC 2018 O14"]
[Site "Halkidiki"]
[Date "2018.10.22"]
[Round "4"]
[White "Boulos, Carlos"]
[Black "Popov, Konstantin"]
[Result "0-1"]
[ECO "B20"]
[WhiteElo "2003"]
[BlackElo "2304"]
[Annotator "NA"]
[PlyCount "125"]
[EventDate "2018.10.20"]
[EventType "swiss"]
[EventCountry "GRE"]
[SourceTitle "playchess.com"]
[Source "ChessBase"]
[SourceQuality "1"]
[TimeControl "40/5400+30:1800+30"]

1. e4 {[%emt 0:00:00]} c5 {[%emt 0:00:00]} 2. Na3 {[%emt 0:00:00] B31: Sicilian: 2...Nc6 3 Bb5 g6} (2. Nf3 Nc6 3. Bb5 g6 4. Bxc6 dxc6 5. d3 Bg7 6. h3 Nf6 7. Nc3 O-O 8. O-O Ne8 9. Be3 b6 10. e5 f6 11. Re1 Nc7 12. Qd2 fxe5 13. Bh6 Rxf3 14. Bxg7 Kxg7 15. gxf3 Bxh3 16. Rxe5 e6 17. Rg5 {1-0 (33) Caruana,F (2827)-Gelfand,B (2703) Batumi 2018}) 2... e6 {[%emt 0:00:59]} 3. c3 {[%emt 0:01:06]} d5 {[%emt 0:01:03]} 4. exd5 {[%emt 0:00:45]} exd5 {[%emt 0:02:39]} 5. Bb5+ {[%emt 0:00:29]} Nc6 {[%emt 0:01:58]} 6. Nf3 {[%emt 0:02:53]} Nf6 {[%emt 0:00:35]} 7. O-O {[%emt 0:01:02]} Be7 {[%emt 0:00:19]} 8. Ne5 $146 {[%emt 0:05:35]} ({Predecessor:} 8. d4 O-O 9. dxc5 Bxc5 {1-0 (55) Doluhanova,E (2243)-Sazonova,E (2195) Salekhard 2008}) 8... Bd7 {[%emt 0:00:51]} 9. Bxc6 {[%emt 0:01:08]} Bxc6 {[%emt 0:01:56]} 10. Nxc6 {[%emt 0:01:48]} bxc6 {[%emt 0:00:06]} 11. Qf3 {[%emt 0:01:08]} c4 {[%emt 0:12:38]} 12. Nc2 {[%emt 0:01:21]} O-O {[%emt 0:00:45]} 13. b3 {[%emt 0:01:38]} cxb3 {[%emt 0:03:03]} 14. axb3 {[%emt 0:00:01]} Ne4 {[%emt 0:02:17]} 15. Nd4 {[%emt 0:05:39]} Qb6 {[%emt 0:10:21]} 16. Qd3 {[%emt 0:13:38]} Bf6 {[%emt 0:04:50]} 17. Ra6 {[%emt 0:23:39]} Qb7 {[%emt 0:03:41]} 18. Ba3 {[%emt 0:00:56]} Bxd4 {[%emt 0:29:59]} 19. cxd4 {[%emt 0:12:19]} Rfe8 {[%emt 0:01:57]} 20. f3 {[%emt 0:04:27] [#]} Nxd2 $19 {[%emt 0:06:50]} 21. Rd1 {[%emt 0:01:53]} Nxb3 {[%emt 0:00:09]} 22. Rb1 {[%emt 0:00:25]} Rab8 {[%emt 0:00:08]} 23. Bd6 {[%emt 0:06:28]} Qb5 {[%emt 0:00:07]} 24. Qxb5 {[%emt 0:00:42]} Rxb5 {[%emt 0:00:10]} 25. Rd1 {[%emt 0:03:22]} Na5 {[%emt 0:00:33]} 26. Ra1 {[%emt 0:01:22]} Nc4 {[%emt 0:05:00]} 27. Bc5 {[%emt 0:02:07]} h6 {[%emt 0:04:07]} 28. Rxa7 {[%emt 0:00:46]} Re2 {[%emt 0:00:21]} 29. R7a2 {[%emt 0:05:11]} Rxa2 {[%emt 0:03:09]} 30. Rxa2 {[%emt 0:00:03]} Rb1+ {[%emt 0:00:05]} 31. Kf2 {[%emt 0:00:08]} Rb2+ {[%emt 0:00:03]} 32. Rxb2 {[%emt 0:00:05]} Nxb2 {[%emt 0:00:06]} 33. Ke2 {[%emt 0:01:05]} f5 {[%emt 0:00:24]} 34. Kd2 {[%emt 0:02:17]} Kf7 {[%emt 0:00:11]} 35. Kc3 {[%emt 0:00:52]} Nc4 {[%emt 0:00:04]} 36. Kd3 {[%emt 0:00:56]} h5 {[%emt 0:02:08]} 37. h4 {[%emt 0:00:40]} f4 {[%emt 0:00:31]} 38. Ke2 {[%emt 0:00:32]} Ne3 {[%emt 0:01:40]} 39. g3 {[%emt 0:00:31]} Nf5 {[%emt 0:00:20]} 40. gxf4 {[%emt 0:00:00]} Nxh4 {[%emt 0:00:00]} 41. f5 {[%emt 0:11:18]} Nxf5 {[%emt 0:00:18]} 42. Kd3 {[%emt 0:00:27]} Ke6 {[%emt 0:00:32]} 43. Ba7 {[%emt 0:00:30]} Nh4 {[%emt 0:06:20]} 44. Ke3 {[%emt 0:00:53]} Kf5 {[%emt 0:00:09]} 45. Bb8 {[%emt 0:00:52]} Ng2+ {[%emt 0:00:07]} 46. Kf2 {[%emt 0:01:10]} Nf4 {[%emt 0:00:05]} 47. Ke3 {[%emt 0:00:55]} g5 {[%emt 0:00:32]} 48. Bd6 {[%emt 0:00:57]} h4 {[%emt 0:00:21]} 49. Bxf4 {[%emt 0:00:04]} gxf4+ {[%emt 0:00:05]} 50. Kf2 {[%emt 0:00:05]} Ke6 {[%emt 0:00:33]} 51. Kg2 {[%emt 0:00:13]} c5 {[%emt 0:00:06]} 52. dxc5 {[%emt 0:00:05]} d4 {[%emt 0:00:03]} 53. Kh3 {[%emt 0:00:13]} d3 {[%emt 0:00:05]} 54. Kxh4 {[%emt 0:00:07]} d2 {[%emt 0:00:05]} 55. Kg4 {[%emt 0:00:05]} d1=Q {[%emt 0:00:08]} 56. Kxf4 {[%emt 0:00:05]} Qd4+ {[%emt 0:00:10]} 57. Kg5 {[%emt 0:00:08]} Qxc5+ {[%emt 0:00:07]} 58. Kg4 {[%emt 0:00:07]} Qf5+ {[%emt 0:00:08]} 59. Kg3 {[%emt 0:00:01]} Ke5 {[%emt 0:00:06]} 60. Kg2 {[%emt 0:00:08]} Kf4 {[%emt 0:00:06]} 61. Kf2 {[%emt 0:00:04]} Qc2+ {[%emt 0:00:05]} 62. Ke1 {[%emt 0:00:06]} Kxf3 {[%emt 0:00:10]} 63. Kf1 0-1

[Event "WYCC 2018 O14"]
[Site "Halkidiki"]
[Date "2018.10.22"]
[Round "4"]
[White "Abelakiotis, Stavros"]
[Black "Srihari L R"]
[Result "0-1"]
[ECO "B07"]
[WhiteElo "1994"]
[BlackElo "2170"]
[Annotator "NA"]
[PlyCount "78"]
[EventDate "2018.10.20"]
[EventType "swiss"]
[EventCountry "GRE"]
[SourceTitle "playchess.com"]
[Source "ChessBase"]
[SourceQuality "1"]
[TimeControl "40/5400+30:1800+30"]

1. e4 {[%emt 0:00:00]} d6 {[%emt 0:00:00]} 2. d4 {[%emt 0:00:00]} Nf6 {[%emt 0:04:21]} 3. Nc3 {[%emt 0:00:07]} c6 {[%emt 0:00:18]} 4. f4 {[%emt 0:01:02]} Qa5 {[%emt 0:00:14]} 5. Bd3 {[%emt 0:00:30]} e5 {[%emt 0:01:32]} 6. Nf3 {[%emt 0:00:29]} Bg4 {[%emt 0:06:15]} 7. Be3 {[%emt 0:02:16]} Nbd7 {[%emt 0:02:20]} 8. O-O {[%emt 0:03:19]} Be7 {[%emt 0:01:43]} 9. h3 {[%emt 0:01:17]} Bxf3 {[%emt 0:00:23]} 10. Qxf3 {[%emt 0:00:32]} O-O {[%emt 0:00:32]} 11. Kh1 {[%emt 0:08:50]} Rac8 {[%emt 0:02:59]} 12. a3 {[%emt 0:06:11]} Qc7 {[%emt 0:03:16]} 13. Bc4 {[%emt 0:04:05]} b5 {[%emt 0:04:15]} 14. Ba2 {[%emt 0:01:11]} a6 {[%emt 0:05:26]} 15. Rad1 {[%emt 0:06:00]} c5 {[%emt 0:25:00]} 16. dxe5 {[%emt 0:11:17]} dxe5 {[%emt 0:00:10]} 17. Nd5 {[%emt 0:01:38]} Nxd5 {[%emt 0:00:29]} 18. Bxd5 {[%emt 0:00:52]} Bd6 {[%emt 0:09:59]} 19. f5 {[%emt 0:05:10]} Nf6 {[%emt 0:08:09]} 20. Rd2 {[%emt 0:12:01]} c4 {[%emt 0:02:47]} 21. c3 {[%emt 0:00:22]} Be7 {[%emt 0:00:42]} 22. g4 {[%emt 0:05:28]} h6 {[%emt 0:03:56]} 23. Rfd1 {[%emt 0:05:03]} Rfd8 {[%emt 0:03:02]} 24. Qf2 {[%emt 0:03:11]} Rd6 {[%emt 0:01:01]} 25. Kg2 {[%emt 0:02:17]} Rcd8 {[%emt 0:01:57]} 26. Kf3 {[%emt 0:00:22]} R8d7 {[%emt 0:02:11]} 27. Ke2 {[%emt 0:07:31]} Rd8 {[%emt 0:01:45]} 28. Kf3 {[%emt 0:00:45]} R8d7 {[%emt 0:00:09]} 29. Ke2 {[%emt 0:00:07]} Qd8 {[%emt 0:01:27]} 30. Bc5 {[%emt 0:04:27]} Nxe4 {[%emt 0:00:51]} 31. Bxd6 {[%emt 0:00:11]} Nxf2 {[%emt 0:00:30]} 32. Bxe7 {[%emt 0:00:09]} Qxe7 {[%emt 0:00:10]} 33. Bxf7+ {[%emt 0:00:40]} Kxf7 {[%emt 0:01:51]} 34. Rxd7 {[%emt 0:00:11]} Nxd1 {[%emt 0:00:03]} 35. Rxe7+ {[%emt 0:00:09]} Kxe7 {[%emt 0:00:03]} 36. Kxd1 {[%emt 0:00:09]} Kf6 {[%emt 0:00:03]} 37. Ke2 {[%emt 0:05:23]} Kg5 {[%emt 0:00:04]} 38. Kf3 {[%emt 0:01:04]} Kh4 {[%emt 0:00:06]} 39. Kg2 {[%emt 0:00:26]} e4 {[%emt 0:00:05]} 0-1

[Event "WYCC 2018 O14"]
[Site "Halkidiki"]
[Date "2018.10.22"]
[Round "4"]
[White "Ngo, Duc Tri"]
[Black "Mishra, Abhimanyu"]
[Result "1-0"]
[ECO "B24"]
[WhiteElo "1883"]
[BlackElo "2149"]
[Annotator "NA"]
[PlyCount "111"]
[EventDate "2018.10.20"]
[EventType "swiss"]
[EventCountry "GRE"]
[SourceTitle "playchess.com"]
[Source "ChessBase"]
[SourceQuality "1"]
[TimeControl "40/5400+30:1800+30"]

1. e4 c5 {[%emt 0:00:00]} 2. Nc3 {[%emt 0:03:33]} Nc6 {[%emt 0:00:00]} 3. Nf3 {[%emt 0:02:57]} e6 {[%emt 0:00:12]} 4. Bb5 {[%emt 0:02:29]} a6 {[%emt 0:21:34]} 5. Bxc6 {[%emt 0:04:20]} dxc6 {[%emt 0:00:40]} 6. d3 {[%emt 0:02:10]} Nf6 {[%emt 0:08:13]} 7. Bg5 {[%emt 0:19:50]} Qc7 {[%emt 0:08:17]} 8. e5 {[%emt 0:07:29]} Nd7 {[%emt 0:06:01]} 9. Qe2 $16 {[%emt 0:01:45]} h6 {[%emt 0:08:13]} 10. Bh4 {[%emt 0:02:13]} b5 {[%emt 0:02:42]} 11. O-O {[%emt 0:04:11]} Bb7 {[%emt 0:05:36]} 12. Bg3 {[%emt 0:02:13]} Be7 {[%emt 0:05:07]} 13. Ne4 {[%emt 0:00:05]} Qb6 {[%emt 0:03:05]} 14. c4 {[%emt 0:01:52]} O-O-O {[%emt 0:04:33]} 15. a4 {[%emt 0:03:22]} b4 {[%emt 0:01:43]} 16. a5 {[%emt 0:00:17]} Qa7 {[%emt 0:00:44]} 17. Nfd2 {[%emt 0:10:45]} f6 {[%emt 0:02:55]} 18. exf6 {[%emt 0:00:13]} gxf6 {[%emt 0:01:34]} 19. Bd6 {[%emt 0:00:07]} Rhe8 {[%emt 0:01:47]} 20. Nb3 {[%emt 0:01:40]} f5 {[%emt 0:01:07]} 21. Bxe7 {[%emt 0:00:13]} Rxe7 {[%emt 0:00:36]} 22. Nd6+ {[%emt 0:00:03]} Kb8 {[%emt 0:01:37]} 23. Nxf5 {[%emt 0:00:06]} Ree8 {[%emt 0:02:34]} 24. Nxh6 {[%emt 0:00:08]} Re7 {[%emt 0:00:38]} 25. Nf5 {[%emt 0:00:54]} Ree8 {[%emt 0:00:57]} 26. Nd6 {[%emt 0:01:45]} Re7 {[%emt 0:00:31]} 27. Qg4 {[%emt 0:00:42]} Rh8 {[%emt 0:01:32]} 28. Rae1 {[%emt 0:00:53]} e5 {[%emt 0:01:21]} 29. f4 {[%emt 0:00:25]} Ka8 {[%emt 0:00:59]} 30. fxe5 {[%emt 0:01:13]} Qb8 {[%emt 0:00:38]} 31. Qf4 {[%emt 0:04:24]} Nxe5 {[%emt 0:00:53]} 32. Rxe5 {[%emt 0:00:05]} Qxd6 {[%emt 0:00:17]} 33. Rh5 {[%emt 0:00:20]} Qxf4 {[%emt 0:01:17]} 34. Rxh8+ {[%emt 0:00:05]} Qb8 {[%emt 0:00:09]} 35. Rff8 {[%emt 0:00:12]} Qxf8 {[%emt 0:00:29]} 36. Rxf8+ {[%emt 0:00:18]} Ka7 {[%emt 0:00:06]} 37. Nxc5 {[%emt 0:00:05]} Rg7 {[%emt 0:00:43]} 38. h4 {[%emt 0:00:06]} Rh7 {[%emt 0:00:08]} 39. g3 {[%emt 0:00:36]} Rg7 {[%emt 0:00:12]} 40. Kf2 {[%emt 0:00:00]} Rh7 {[%emt 0:00:00]} 41. Kf3 {[%emt 0:01:23]} Rg7 {[%emt 0:00:42]} 42. h5 {[%emt 0:00:12]} Rg5 {[%emt 0:00:16]} 43. Nxb7 {[%emt 0:00:23]} Kxb7 {[%emt 0:00:19]} 44. h6 {[%emt 0:00:04]} Rh5 {[%emt 0:00:08]} 45. Rf7+ {[%emt 0:00:05]} Kc8 {[%emt 0:00:05]} 46. h7 {[%emt 0:00:03]} Kd8 {[%emt 0:00:18]} 47. Rf8+ {[%emt 0:00:04]} Ke7 {[%emt 0:00:05]} 48. h8=Q {[%emt 0:00:06]} Rxh8 {[%emt 0:00:07]} 49. Rxh8 {[%emt 0:00:03]} Kf6 {[%emt 0:00:09]} 50. g4 {[%emt 0:00:15]} Ke5 {[%emt 0:00:03]} 51. Ke3 {[%emt 0:00:20]} c5 {[%emt 0:00:07]} 52. Rh5+ {[%emt 0:00:06]} Kd6 {[%emt 0:00:09]} 53. Rd5+ {[%emt 0:00:05]} Kc6 {[%emt 0:00:05]} 54. g5 {[%emt 0:00:02]} Kb7 {[%emt 0:00:05]} 55. g6 {[%emt 0:00:03]} Kc6 {[%emt 0:00:07]} 56. g7 1-0

[Event "WYCC 2018 O14"]
[Site "Halkidiki"]
[Date "2018.10.22"]
[Round "4"]
[White "Ilic, Nicholas"]
[Black "Cohen Revivo, Shoham"]
[Result "0-1"]
[ECO "C02"]
[WhiteElo "1842"]
[BlackElo "2289"]
[Annotator "NA"]
[PlyCount "50"]
[EventDate "2018.10.20"]
[EventType "swiss"]
[EventCountry "GRE"]
[SourceTitle "playchess.com"]
[Source "ChessBase"]
[SourceQuality "1"]
[TimeControl "40/5400+30:1800+30"]

1. e4 {[%emt 0:00:00]} e6 {[%emt 0:00:00]} 2. d4 {[%emt 0:00:00]} d5 {[%emt 0:00:00]} 3. e5 {[%emt 0:00:00]} c5 {[%emt 0:00:00]} 4. c3 {[%emt 0:00:00]} Nc6 {[%emt 0:00:27]} 5. Nf3 {[%emt 0:00:00]} Qb6 {[%emt 0:00:07]} 6. a3 {[%emt 0:00:06]} Nh6 {[%emt 0:00:43]} 7. b4 {[%emt 0:00:09]} cxd4 {[%emt 0:00:10]} 8. Bxh6 {[%emt 0:00:07]} gxh6 {[%emt 0:00:06]} 9. cxd4 {[%emt 0:00:05]} Bd7 {[%emt 0:00:50]} 10. Ra2 {[%emt 0:00:15]} Rg8 {[%emt 0:03:30]} 11. g3 {[%emt 0:17:32]} Rg4 {[%emt 0:04:37]} 12. Rd2 {[%emt 0:07:40]} a5 {[%emt 0:05:36]} 13. b5 {[%emt 0:06:59]} Na7 {[%emt 0:00:30]} 14. Qb3 {[%emt 0:11:37]} Re4+ {[%emt 0:18:04]} 15. Kd1 {[%emt 0:04:26]} Nxb5 {[%emt 0:20:30]} 16. Bd3 {[%emt 0:15:24]} (16. Rc2 $17) 16... Rc8 $19 {[%emt 0:01:07]} 17. Rb2 {[%emt 0:00:26]} a4 18. Qa2 Rxd4 {[%emt 0:03:15]} 19. Nxd4 {[%emt 0:01:58]} Qxd4 {[%emt 0:00:04]} 20. Rd2 {[%emt 0:01:21]} Bxa3 {[%emt 0:05:34]} 21. Ke2 {[%emt 0:08:07]} Qg4+ {[%emt 0:04:21]} 22. Kf1 {[%emt 0:02:49]} Qf3 {[%emt 0:00:29]} 23. Kg1 {[%emt 0:00:26]} Rc1+ {[%emt 0:01:27]} 24. Bf1 {[%emt 0:00:06]} Bb4 {[%emt 0:03:29]} 25. Qxa4 {[%emt 0:00:47]} Rxf1+ {[%emt 0:00:54]} 0-1

[Event "WYCC 2018 O14"]
[Site "Halkidiki"]
[Date "2018.10.22"]
[Round "4"]
[White "Dabarera, G W D M"]
[Black "Soriano Quispe, Ivan Excender"]
[Result "1-0"]
[ECO "C29"]
[WhiteElo "1768"]
[BlackElo "2054"]
[Annotator "NA"]
[PlyCount "41"]
[EventDate "2018.10.20"]
[EventType "swiss"]
[EventCountry "GRE"]
[SourceTitle "playchess.com"]
[Source "ChessBase"]
[SourceQuality "1"]
[TimeControl "40/5400+30:1800+30"]

1. e4 {[%emt 0:00:00]} e5 {[%emt 0:00:00]} 2. Nc3 {[%emt 0:00:00]} Nf6 {[%emt 0:00:44]} 3. f4 {[%emt 0:00:00]} d5 {[%emt 0:00:29]} 4. fxe5 {[%emt 0:00:00]} Nxe4 {[%emt 0:00:12]} 5. Qf3 {[%emt 0:00:13]} Nxc3 {[%emt 0:01:55]} 6. bxc3 {[%emt 0:00:14]} c5 {[%emt 0:05:06]} 7. Bb5+ {[%emt 0:01:02]} Nc6 {[%emt 0:01:33]} 8. Bxc6+ {[%emt 0:01:46]} bxc6 {[%emt 0:00:08]} 9. Qg3 {[%emt 0:01:46]} Bf5 {[%emt 0:06:45]} 10. d3 {[%emt 0:00:41]} Qa5 {[%emt 0:00:36]} 11. Ne2 {[%emt 0:01:07]} Qa4 {[%emt 0:17:49]} 12. O-O {[%emt 0:01:10]} Qxc2 {[%emt 0:15:50]} 13. Rxf5 {[%emt 0:05:37]} Qxe2 {[%emt 0:00:22]} 14. Ba3 {[%emt 0:00:50]} g6 {[%emt 0:25:52]} 15. Rf2 Qh5 {[%emt 0:00:13]} 16. e6 {[%emt 0:04:25]} O-O-O {[%emt 0:02:07]} 17. Qe3 {[%emt 0:06:28]} Bd6 {[%emt 0:03:18]} 18. g3 {[%emt 0:03:31]} Rhe8 {[%emt 0:06:47]} 19. Rxf7 {[%emt 0:02:06]} Qg4 {[%emt 0:00:08]} 20. e7 {[%emt 0:02:04]} Rd7 {[%emt 0:00:30]} 21. Rf8 {[%emt 0:00:56]} 1-0

[Event "WYCC 2018 O14"]
[Site "Halkidiki"]
[Date "2018.10.23"]
[Round "5"]
[White "Spyropoulos, Nikolaos"]
[Black "Torngren, Gustav"]
[Result "1-0"]
[ECO "B38"]
[WhiteElo "2378"]
[BlackElo "2107"]
[Annotator "NA"]
[PlyCount "117"]
[EventDate "2018.10.20"]
[EventType "swiss"]
[EventCountry "GRE"]
[SourceTitle "playchess.com"]
[Source "ChessBase"]
[SourceQuality "1"]
[TimeControl "40/5400+30:1800+30"]

1. e4 {[%emt 0:00:00]} c5 {[%emt 0:00:00]} 2. Nf3 {[%emt 0:00:00]} g6 {[%emt 0:00:02]} 3. c4 {[%emt 0:00:00]} Nc6 {[%emt 0:00:33]} 4. d4 {[%emt 0:00:00]} cxd4 {[%emt 0:00:13]} 5. Nxd4 {[%emt 0:00:01]} Bg7 {[%emt 0:00:13]} 6. Be3 {[%emt 0:00:07]} Nh6 {[%emt 0:00:19]} 7. Nc3 {[%emt 0:02:30]} d6 {[%emt 0:00:21]} 8. Be2 {[%emt 0:03:35]} O-O {[%emt 0:03:14]} 9. O-O {[%emt 0:08:16]} f5 {[%emt 0:00:18]} 10. Qd2 {[%emt 0:08:45]} Nxd4 {[%emt 0:10:47]} 11. Bxd4 {[%emt 0:17:52]} f4 {[%emt 0:18:27]} 12. Bxg7 {[%emt 0:05:39]} Kxg7 {[%emt 0:00:05]} 13. Rad1 {[%emt 0:00:36]} Be6 {[%emt 0:01:10]} 14. Qd4+ {[%emt 0:02:26]} Kg8 {[%emt 0:00:54]} 15. e5 {[%emt 0:09:07]} Nf7 $16 {[%emt 0:06:34]} 16. Qxf4 {[%emt 0:06:42]} Nxe5 {[%emt 0:00:28]} 17. Qe4 {[%emt 0:00:45]} Qc8 {[%emt 0:02:26]} 18. b3 {[%emt 0:01:59]} Qc6 {[%emt 0:16:27]} 19. Qe3 {[%emt 0:03:04]} Qb6 {[%emt 0:02:52]} 20. Rd4 {[%emt 0:01:42]} Kg7 {[%emt 0:01:47]} 21. Na4 {[%emt 0:01:29]} Qc7 {[%emt 0:04:24]} 22. c5 {[%emt 0:06:01]} Nc6 {[%emt 0:00:29]} 23. Rdd1 {[%emt 0:00:51]} Bf7 {[%emt 0:01:04]} 24. cxd6 {[%emt 0:04:34]} exd6 {[%emt 0:00:02]} 25. Bf3 {[%emt 0:02:08]} Rac8 {[%emt 0:02:11]} 26. Bxc6 {[%emt 0:07:30]} bxc6 {[%emt 0:00:02]} 27. Qd4+ {[%emt 0:00:07]} Kg8 {[%emt 0:00:10]} 28. Qxd6 {[%emt 0:00:04]} Bd5 {[%emt 0:00:43]} 29. Qxc7 {[%emt 0:00:44]} Rxc7 {[%emt 0:00:01]} 30. Rfe1 {[%emt 0:00:14]} Kf7 {[%emt 0:01:41]} 31. Rd4 {[%emt 0:02:44]} Re7 {[%emt 0:00:17]} 32. Rf4+ {[%emt 0:00:45]} Ke8 {[%emt 0:00:05]} 33. Rxe7+ {[%emt 0:00:05]} Kxe7 {[%emt 0:00:05]} 34. Rxf8 {[%emt 0:00:03]} Kxf8 {[%emt 0:00:11]} 35. f3 {[%emt 0:00:41]} Ke7 {[%emt 0:00:27]} 36. Kf2 {[%emt 0:00:11]} Kd6 {[%emt 0:00:11]} 37. Ke3 {[%emt 0:00:09]} g5 {[%emt 0:01:16]} 38. Nc3 {[%emt 0:01:23]} h6 {[%emt 0:02:59]} 39. Nxd5 Kxd5 {[%emt 0:00:22]} 40. g3 {[%emt 0:00:00]} Ke5 {[%emt 0:00:00]} 41. f4+ {[%emt 0:03:33]} gxf4+ {[%emt 0:05:32]} 42. gxf4+ {[%emt 0:00:07]} Kf5 {[%emt 0:00:11]} 43. b4 {[%emt 0:02:16]} h5 {[%emt 0:03:40]} 44. h3 {[%emt 0:02:36]} a6 {[%emt 0:05:06]} 45. a4 {[%emt 0:00:39]} h4 {[%emt 0:01:51]} 46. a5 {[%emt 0:00:15]} Kf6 {[%emt 0:00:13]} 47. Ke4 {[%emt 0:00:05]} Ke6 {[%emt 0:00:09]} 48. f5+ {[%emt 0:00:05]} Kf6 {[%emt 0:00:12]} 49. Kf4 {[%emt 0:00:04]} Kf7 {[%emt 0:00:15]} 50. Kg5 {[%emt 0:00:06]} Kg7 {[%emt 0:00:17]} 51. Kxh4 {[%emt 0:00:04]} Kh6 {[%emt 0:00:30]} 52. Kg4 {[%emt 0:00:04]} Kh7 {[%emt 0:00:06]} 53. Kg5 {[%emt 0:00:08]} Kg7 {[%emt 0:00:08]} 54. f6+ {[%emt 0:00:04]} Kf7 {[%emt 0:00:20]} 55. Kf5 {[%emt 0:00:07]} c5 {[%emt 0:00:14]} 56. bxc5 {[%emt 0:00:06]} Kf8 {[%emt 0:00:07]} 57. Ke6 {[%emt 0:00:07]} Ke8 {[%emt 0:00:06]} 58. c6 {[%emt 0:00:05]} Kd8 {[%emt 0:00:06]} 59. f7 {[%emt 0:00:11]} 1-0